bitfinex/quotes_ETHUSD_20241215
["timestamp","ask_amount","ask_price","bid_price","bid_amount"]
[1734295419978,1.56342026,3900.4,3899.4,0.78388388]
[1734295420170,0.75392096,3900.4,3899.4,0.78388388]
[1734295421093,0.05806764,3900.4,3899.8,2.56422]
[1734295421388,1.07167778,3900.9,3899.9,0.753]
[1734295421579,0.05622585,3900.8,3899.9,0.753]
[1734295421961,1.07167778,3900.9,3899.9,0.753]
[1734295422159,0.7091,3900.6,3899.9,0.753]
[1734295422372,2.62010984,3900.5,3899.9,0.753]
[1734295422571,0.86768223,3900.4,3899.9,0.753]
[1734295422760,0.05626076,3900.3,3899.9,0.753]
[1734295423454,2.56378,3900.5,3899.9,0.753]
[1734295423661,0.59139795,3900.4,3899.9,0.753]
[1734295424281,0.0562953,3900.4,3899.9,0.753]
[1734295424591,4.64180652,3900.7,3899.9,0.753]
[1734295424758,0.92407432,3900.6,3899.9,0.753]
[1734295424964,0.05633471,3900.6,3899.9,0.753]
[1734295426797,3.29747382,3900.6,3899.9,0.753]
[1734295426961,2.73844988,3900.5,3899.9,0.753]
[1734295427165,0.05626564,3900.4,3899.9,0.753]
[1734295430465,0.86796582,3900.3,3899.9,0.753]
[1734295430666,0.05619655,3900.2,3899.9,0.753]
[1734295430888,1.64062974,3900.5,3899.9,0.753]
[1734295431099,0.05616201,3900.1,3899.9,0.753]
[1734295431399,0.05612746,3900.0,3899.9,0.753]
[1734295431607,1.07167778,3900.5,3899.9,0.753]
[1734295431766,1.60751667,3900.6,3899.9,0.753]
[1734295431767,2.79353246,3900.4,3899.9,0.753]
[1734295431974,0.86803417,3900.3,3899.9,0.753]
[1734295432180,0.05619655,3900.2,3899.9,0.753]
[1734295432404,1.07167778,3900.4,3899.9,0.753]
[1734295432605,0.0562311,3900.3,3899.9,0.753]
[1734295432802,0.8681015,3900.2,3899.9,0.753]
[1734295433003,0.8681015,3900.2,3899.5,0.753]
[1734295433004,0.05609281,3900.1,3899.5,0.753]
[1734295433206,1.12777059,3900.1,3899.5,0.753]
[1734295433505,3.88056523,3900.0,3899.5,0.753]
[1734295433676,2.17022006,3899.9,3899.5,0.753]
[1734295433882,0.05598418,3899.9,3899.5,0.753]
[1734295437386,0.8680205,3899.8,3899.5,0.753]
[1734295437614,0.05557893,3899.7,3899.5,0.753]
[1734295437781,1.07167778,3900.0,3899.5,0.753]
[1734295438115,0.05564803,3899.9,3899.5,0.753]
[1734295439795,0.86810948,3899.8,3899.5,0.753]
[1734295440113,0.05557893,3899.7,3899.5,0.753]
[1734295440482,1.07167778,3900.0,3899.5,0.753]
[1734295440678,0.05554437,3899.6,3899.5,0.753]
[1734295440873,1.07167778,3899.9,3899.5,0.753]
[1734295441114,0.05561348,3899.8,3899.5,0.753]
[1734295441697,1.07167778,3899.9,3899.5,0.753]
[1734295441905,0.05557893,3899.7,3899.5,0.753]
[1734295442105,3.63586778,3899.9,3899.5,0.753]
[1734295442283,0.05554437,3899.6,3899.5,0.753]
[1734295442484,1.07167778,3900.0,3899.5,0.753]
[1734295442697,0.05554437,3899.6,3899.5,0.753]
[1734295442908,1.07167778,3900.0,3899.5,0.753]
[1734295443219,1.94099316,3900.0,3899.5,0.753]
[1734295443379,0.05564803,3899.9,3899.5,0.753]
[1734295443587,0.86931538,3899.8,3899.5,0.753]
[1734295443784,0.05553939,3899.7,3899.5,0.753]
[1734295444088,1.07167778,3900.0,3899.5,0.753]
[1734295444283,0.05550484,3899.6,3899.5,0.753]
[1734295444501,1.07167778,3900.0,3899.5,0.753]
[1734295444702,0.05550484,3899.6,3899.5,0.753]
[1734295444903,1.07167778,3900.0,3899.5,0.753]
[1734295445418,0.05560849,3899.9,3899.5,0.753]
[1734295445599,0.86932404,3899.8,3899.5,0.753]
[1734295445786,0.05553939,3899.7,3899.5,0.753]
[1734295446302,1.07167778,3900.0,3899.5,0.753]
[1734295446303,0.05550484,3899.6,3899.5,0.753]
[1734295446707,1.07167778,3900.0,3899.5,0.753]
[1734295446708,1.07167778,3900.1,3899.5,0.753]
[1734295447020,3.24505223,3900.1,3899.5,0.753]
[1734295447328,2.22901749,3900.0,3899.5,0.753]
[1734295447503,0.8695791,3899.9,3899.5,0.753]
[1734295448022,0.05557394,3899.8,3899.5,0.753]
[1734295448424,1.07167778,3900.0,3899.5,0.753]
[1734295448721,0.05566286,3899.9,3899.5,0.753]
[1734295448918,0.86957738,3899.8,3899.5,0.753]
[1734295449421,0.05559376,3899.7,3899.5,0.753]
[1734295449626,1.07167778,3900.0,3899.5,0.753]
[1734295449823,0.05566286,3899.9,3899.5,0.753]
[1734295449999,1.94128553,3900.1,3899.6,0.7947]
[1734295450000,1.07167778,3900.1,3899.6,0.7947]
[1734295450188,0.0557073,3900.0,3899.6,0.7947]
[1734295450609,1.07167778,3900.2,3899.6,0.7947]
[1734295450796,0.05574184,3900.1,3899.6,0.7947]
[1734295451137,0.86966524,3900.0,3899.6,0.7947]
[1734295451436,0.05567275,3899.9,3899.6,0.7947]
[1734295451734,1.07167778,3900.1,3899.6,0.7947]
[1734295451886,0.0556382,3899.8,3899.6,0.7947]
[1734295452091,1.07167778,3900.2,3899.6,1.13374339]
[1734295452302,0.05560365,3899.7,3899.6,1.13374339]
[1734295452498,1.07167778,3900.2,3899.6,1.13374339]
[1734295452712,1.07167778,3900.2,3899.6,0.7947]
[1734295452915,0.05576658,3900.1,3899.6,0.7947]
[1734295456315,1.07167778,3900.3,3899.6,0.7947]
[1734295456489,0.05573203,3900.0,3899.6,0.7947]
[1734295456689,1.07167778,3900.3,3899.7,0.7947]
[1734295456894,1.60751667,3900.4,3899.7,0.7947]
[1734295456895,0.92565492,3900.2,3899.7,0.7947]
[1734295457135,0.05594442,3900.3,3899.7,0.7947]
[1734295457305,0.05587533,3900.1,3899.7,0.7947]
[1734295457495,0.05590988,3900.2,3899.8,4.26338162]
[1734295457699,2.14335556,3900.9,3899.8,0.8104]
[1734295457700,1.07167778,3900.4,3899.8,0.8104]
[1734295458100,0.05594442,3900.3,3899.8,0.8104]
[1734295458301,0.86985428,3900.2,3899.8,0.8104]
[1734295458497,0.05594442,3900.3,3899.8,0.8104]
[1734295458710,0.86986737,3900.2,3899.8,0.8104]
[1734295458930,0.05594442,3900.3,3899.8,1.147873]
[1734295459230,0.05602852,3900.2,3899.8,1.147873]
[1734295459396,1.07167778,3900.5,3899.8,1.147873]
[1734295459593,0.0560976,3900.4,3899.8,0.8104]
[1734295459803,3.30243237,3900.4,3899.8,0.8104]
[1734295460044,2.17465699,3900.3,3899.8,0.8104]
[1734295460220,0.05602852,3900.2,3899.8,0.8104]
[1734295460433,1.07167778,3900.4,3899.8,0.8104]
[1734295460635,0.05606306,3900.3,3899.8,3.37461]
[1734295460932,0.05606306,3900.3,3900.0,0.8104]
[1734295461301,1.07167778,3900.3,3900.0,0.8104]
[1734295461629,0.0560977,3900.2,3900.0,0.8104]
[1734295461829,0.870013,3900.1,3900.0,0.8104]
[1734295462029,0.92607615,3900.1,3900.0,0.8104]
[1734295462827,0.25583854,3900.1,3899.5,0.8104]
[1734295463026,2.56417,3899.9,3899.4,0.03118388]
[1734295463238,0.92592546,3899.8,3899.4,0.03118388]
[1734295463440,3.30267548,3899.8,3899.4,0.03118388]
[1734295463652,0.87005491,3899.7,3899.4,0.03118388]
[1734295463806,0.05578662,3899.6,3899.4,0.03118388]
[1734295464239,0.05575206,3899.5,3899.4,0.03118388]
[1734295464445,1.07167778,3899.8,3899.4,0.03118388]
[1734295464655,0.05582117,3899.7,3899.4,0.03118388]
[1734295464817,1.07167778,3899.8,3899.4,0.03118388]
[1734295465005,0.05582117,3899.7,3899.4,0.03118388]
[1734295465205,1.07167778,3899.9,3899.4,0.03118388]
[1734295465406,2.56436,3899.7,3899.4,0.03118388]
[1734295465625,0.05554932,3899.6,3899.4,0.03118388]
[1734295465818,0.92550786,3899.6,3899.4,0.03118388]
[1734295466111,0.05554932,3899.6,3899.4,0.03118388]
[1734295468814,1.07167778,3899.8,3899.4,0.03118388]
[1734295469023,0.05558387,3899.7,3899.4,0.03118388]
[1734295469211,0.86994053,3899.6,3899.4,0.03118388]
[1734295469411,0.05551476,3899.5,3899.4,0.03118388]
[1734295469613,2.56424,3899.8,3899.4,0.03118388]
[1734295469947,0.92551195,3899.7,3899.4,0.03118388]
[1734295470259,0.05558387,3899.7,3899.4,0.03118388]
[1734295470427,1.07167778,3899.9,3899.4,0.03118388]
[1734295470746,0.05561842,3899.8,3899.4,0.03118388]
[1734295470947,0.86996841,3899.7,3899.4,0.03118388]
[1734295471327,0.05554932,3899.6,3899.4,0.03118388]
[1734295471852,1.07167778,3899.9,3899.4,0.03118388]
[1734295472018,0.05561842,3899.8,3899.4,0.03118388]
[1734295472219,0.87000897,3899.7,3899.4,0.03118388]
[1734295472420,0.05554932,3899.6,3899.4,0.03118388]
[1734295472645,1.07167778,3899.8,3899.4,0.03118388]
[1734295472846,0.92553326,3899.7,3899.4,0.03118388]
[1734295473017,0.05558387,3899.7,3899.4,0.03118388]
[1734295473220,1.07167778,3899.8,3899.4,0.03118388]
[1734295473530,0.05558387,3899.7,3899.4,0.03118388]
[1734295473930,1.07167778,3899.9,3899.4,0.03118388]
[1734295474129,0.05554932,3899.6,3899.4,0.03118388]
[1734295474335,1.07167778,3899.8,3899.4,0.03118388]
[1734295474531,0.05551476,3899.5,3899.4,0.03118388]
[1734295474736,1.07167778,3899.9,3899.4,0.03118388]
[1734295474934,0.05551476,3899.5,3899.4,0.03118388]
[1734295475562,1.07167778,3900.0,3899.4,0.03118388]
[1734295475762,0.05531701,3899.5,3899.4,0.03118388]
[1734295475930,1.07167778,3900.0,3899.4,0.03118388]
[1734295476124,0.7091,3900.1,3899.4,0.03118388]
[1734295476125,0.05531701,3899.5,3899.4,0.03118388]
[1734295476329,1.07167778,3900.1,3899.4,0.03118388]
[1734295476550,1.07167778,3900.1,3899.4,0.84158388]
[1734295476551,0.05531701,3899.5,3899.4,0.84158388]
[1734295476741,1.07167778,3900.1,3899.4,0.84158388]
[1734295476940,0.05516404,3899.5,3899.4,0.84158388]
[1734295477136,3.24674663,3900.1,3899.4,0.84158388]
[1734295477137,1.07167778,3900.1,3899.4,1.5896129]
[1734295477338,0.05516404,3899.5,3899.4,1.5591129]
[1734295477659,1.07167778,3900.1,3899.4,2.44798744]
[1734295477858,0.92544566,3900.0,3899.4,0.81108388]
[1734295478048,0.05536647,3900.0,3899.4,0.81108388]
[1734295478255,1.07167778,3900.1,3899.4,0.81108388]
[1734295478573,0.05536647,3900.0,3899.4,0.81108388]
[1734295479125,0.87008749,3899.9,3899.4,0.81108388]
[1734295479441,0.05529737,3899.8,3899.4,0.81108388]
[1734295479636,0.05529737,3899.8,3899.4,1.40024178]
[1734295479857,1.07167778,3900.1,3899.4,1.40024178]
[1734295480031,0.05536647,3900.0,3899.4,0.81108388]
[1734295480850,0.87008742,3899.9,3899.4,0.81108388]
[1734295481161,0.05529737,3899.8,3899.4,0.81108388]
[1734295481364,0.05529737,3899.8,3899.5,0.88890637]
[1734295481534,1.07167778,3900.2,3899.4,0.81108388]
[1734295481869,1.94179526,3900.2,3899.5,3.88891068]
[1734295482164,0.05384551,3900.1,3899.4,1.65670178]
[1734295482461,0.87011748,3900.0,3899.5,3.8889144]
[1734295482640,0.05377642,3899.9,3899.4,1.65670178]
[1734295482839,0.05377642,3899.9,3899.5,3.88891397]
[1734295483040,1.07167778,3900.2,3899.6,0.66196421]
[1734295483339,0.05384551,3900.1,3899.4,1.65670178]
[1734295483528,0.87012053,3900.0,3899.5,3.88891153]
[1734295483860,0.05377642,3899.9,3899.4,1.65670178]
[1734295484271,1.07167778,3900.1,3899.4,1.65670178]
[1734295484440,0.05374187,3899.8,3899.5,0.93017969]
[1734295484640,1.07167778,3900.1,3899.5,0.93017969]
[1734295484843,0.05370732,3899.7,3899.5,0.93017969]
[1734295485042,1.07167778,3900.2,3899.5,0.93017969]
[1734295485276,0.05367276,3899.6,3899.5,0.93017969]
[1734295485597,1.07167778,3900.1,3899.5,0.93017969]
[1734295485754,0.87014977,3900.0,3899.5,0.93017969]
[1734295485926,0.05381097,3900.0,3899.5,0.93017969]
[1734295486286,1.07167778,3900.1,3899.5,0.93017969]
[1734295486465,0.05377642,3899.9,3899.4,0.81108388]
[1734295486635,1.07167778,3900.1,3899.4,0.81108388]
[1734295486829,0.05374187,3899.8,3899.4,0.81108388]
[1734295487035,1.07167778,3900.1,3899.4,0.81108388]
[1734295487231,0.05370732,3899.7,3899.4,0.81108388]
[1734295487432,1.07167778,3900.1,3899.4,1.40024178]
[1734295487630,0.05367276,3899.6,3899.4,0.81108388]
[1734295487843,1.07167778,3900.1,3899.4,0.81108388]
[1734295488042,0.05363821,3899.5,3899.4,0.81108388]
[1734295488362,1.94185808,3900.1,3899.4,4.70008182]
[1734295488363,1.07167778,3900.1,3899.4,4.70008182]
[1734295488563,0.05363821,3899.5,3899.4,3.81108388]
[1734295488771,1.07167778,3900.1,3899.4,2.28926282]
[1734295488934,0.05363821,3899.5,3899.4,0.81108388]
[1734295489136,1.07167778,3900.1,3899.4,1.70010527]
[1734295489330,0.05363821,3899.5,3899.4,0.81108388]
[1734295489531,0.05363821,3899.5,3899.4,3.81108388]
[1734295489873,1.07167778,3900.1,3899.4,1.70011065]
[1734295490115,3.24743113,3900.1,3899.4,0.81108388]
[1734295490235,2.17575335,3900.0,3899.4,0.81108388]
[1734295490439,0.92407776,3899.9,3899.4,0.81108388]
[1734295490639,0.05377642,3899.9,3899.4,0.81108388]
[1734295491267,0.05374187,3899.8,3899.4,0.81108388]
[1734295491466,1.07167778,3900.1,3899.4,0.81108388]
[1734295491868,1.94198723,3900.1,3899.4,0.81108388]
[1734295492074,0.05381097,3900.0,3899.4,0.81108388]
[1734295492371,0.87030945,3899.9,3899.4,0.81108388]
[1734295492762,0.05374187,3899.8,3899.4,0.81108388]
[1734295492957,0.05374187,3899.8,3899.4,1.65670978]
[1734295493269,1.07167778,3900.1,3899.4,1.65670978]
[1734295493497,0.05370732,3899.7,3899.4,0.81108388]
[1734295493693,1.07167778,3900.0,3899.4,0.81108388]
[1734295493910,0.05367276,3899.6,3899.4,0.81108388]
[1734295494113,1.07167778,3900.0,3899.4,0.81108388]
[1734295494292,0.05363821,3899.5,3899.4,0.81108388]
[1734295494454,1.07167778,3900.0,3899.4,0.81108388]
[1734295494812,0.05363821,3899.5,3899.4,0.81108388]
[1734295494977,1.07167778,3900.0,3899.4,0.81108388]
[1734295495313,0.05377642,3899.9,3899.4,0.81108388]
[1734295495621,1.1254542,3899.9,3899.4,0.81108388]
[1734295495757,0.87036647,3899.8,3899.4,0.81108388]
[1734295495956,0.87036647,3899.7,3899.4,0.81108388]
[1734295496157,0.87030101,3899.6,3899.4,0.81108388]
[1734295496418,1.1253851,3899.7,3899.4,0.81108388]
[1734295496585,0.05363821,3899.5,3899.4,0.81108388]
[1734295496794,1.07167778,3899.7,3899.4,0.81108388]
[1734295496995,0.05366294,3899.5,3899.4,0.81108388]
[1734295497206,1.07167778,3899.8,3899.4,0.81108388]
[1734295497527,3.24737128,3899.7,3899.4,0.03118388]
[1734295497822,3.24737128,3899.6,3899.4,0.03118388]
[1734295498175,0.05373215,3899.5,3899.4,0.03118388]
[1734295498407,1.63310955,3899.5,3899.4,0.03118388]
[1734295498773,2.93843322,3899.5,3899.4,0.03118388]
[1734295498974,3.82687231,3899.5,3899.4,0.03118388]
[1734295499288,2.52154864,3899.5,3899.4,0.03118388]
[1734295501029,3.11748537,3899.5,3899.4,0.03118388]
[1734295501239,0.9238578,3899.5,3899.4,0.03118388]
[1734295502532,3.4882878,3899.5,3899.4,0.03118388]
[1734295502810,0.9238578,3899.5,3899.4,0.03118388]
[1734295503732,5.50246956,3899.5,3899.4,0.03118388]
[1734295503930,6.49804406,3899.5,3899.4,0.03118388]
[1734295504630,8.10556073,3899.5,3899.4,0.03118388]
[1734295504783,8.10556073,3899.5,3898.9,0.791]
[1734295504984,3.24870182,3899.4,3898.9,0.791]
[1734295505194,3.24870182,3899.3,3898.9,0.791]
[1734295505515,0.05328503,3899.3,3898.9,0.791]
[1734295506089,0.86996969,3899.2,3898.9,0.791]
[1734295506323,0.05313677,3899.1,3898.9,0.791]
[1734295506485,1.07349441,3899.4,3898.9,0.791]
[1734295506699,0.0532059,3899.3,3898.9,0.791]
[1734295506908,0.86991089,3899.2,3898.9,0.791]
[1734295507085,0.92305028,3899.1,3898.4,0.791]
[1734295507284,0.05313677,3899.1,3898.5,0.88882002]
[1734295507489,1.07349441,3899.3,3898.5,0.88882002]
[1734295507717,0.05317134,3899.2,3898.5,0.88882002]
[1734295507922,0.86988295,3899.1,3898.4,4.58459124]
[1734295508098,0.05293424,3899.0,3898.4,4.58459124]
[1734295508326,0.05293424,3899.0,3898.5,3.97368218]
[1734295508525,1.07349441,3899.3,3898.5,0.97368218]
[1734295508833,0.05300337,3899.2,3898.5,0.97368218]
[1734295510994,0.05300337,3899.2,3898.4,0.791]
[1734295511240,3.2738,3899.1,3898.4,0.791]
[1734295511537,0.05281062,3899.0,3898.4,0.791]
[1734295518949,0.05281062,3899.0,3898.1,0.7891]
[1734295525300,0.05281062,3899.0,3898.1,1.79641816]
[1734295525996,0.7091,3898.9,3898.1,0.7891]
[1734295526396,0.0508468,3898.8,3898.1,0.7891]
[1734295533137,0.7091,3898.7,3897.6,1.86312636]
[1734295533346,0.7091,3898.4,3897.6,0.7891]
[1734295533492,2.56509,3898.5,3897.3,0.8397679]
[1734295533493,0.05003589,3898.3,3897.3,0.8397679]
[1734295533689,0.7091,3898.2,3897.3,0.8397679]
[1734295534087,0.04990243,3898.1,3897.3,0.8397679]
[1734295534634,0.04990243,3898.1,3897.3,3.8397679]
[1734295534933,0.04990243,3898.1,3897.4,3.64057079]
[1734295536257,0.04990243,3898.1,3897.4,6.20635079]
[1734295536765,0.7091,3898.2,3897.4,6.20635079]
[1734295537555,0.04962542,3898.1,3897.4,6.20635079]
[1734295537727,0.04962542,3898.1,3897.4,3.64057079]
[1734295537928,0.04962542,3898.1,3897.3,1.84708606]
[1734295538126,0.04962542,3898.1,3897.3,0.8397679]
[1734295538376,0.7091,3898.0,3897.3,0.0506679]
[1734295538531,0.04962542,3898.1,3897.3,0.0506679]
[1734295538532,0.04937817,3897.9,3897.3,0.0506679]
[1734295538728,0.7091,3897.8,3897.3,0.0506679]
[1734295539142,0.04928921,3897.7,3897.3,0.0506679]
[1734295539340,0.7091,3897.6,3897.3,0.0506679]
[1734295539569,0.04922003,3897.5,3897.3,0.0506679]
[1734295545483,0.04922003,3897.5,3897.4,0.27731519]
[1734295545682,0.7091,3898.2,3897.4,0.46841413]
[1734295546092,0.04899708,3898.1,3897.4,0.46841413]
[1734295548391,0.04899708,3898.1,3897.3,2.6165079]
[1734295553516,0.04899708,3898.1,3897.3,0.0506679]
[1734295557142,0.04899708,3898.1,3897.3,3.0506679]
[1734295557616,0.04899708,3898.1,3897.3,0.0506679]
[1734295557816,0.04899708,3898.1,3897.4,0.7536]
[1734295558029,0.04899708,3898.1,3897.4,0.93475861]
[1734295559191,0.7091,3898.2,3897.4,3.50055861]
[1734295559547,0.04913068,3898.1,3897.4,3.50055861]
[1734295560189,0.04913068,3898.1,3897.4,4.50787677]
[1734295560393,0.04913068,3898.1,3898.0,0.7536]
[1734295560544,3.2128011,3899.7,3898.0,0.7536]
[1734295560545,0.7091,3898.9,3898.0,4.65823516]
[1734295560747,0.04783796,3898.8,3898.0,1.085507]
[1734295561048,0.04783796,3898.8,3898.0,0.7536]
[1734295562556,0.86796324,3898.7,3898.0,0.7536]
[1734295562753,0.04780348,3898.6,3898.0,0.7536]
[1734295563154,1.78259441,3898.9,3898.0,0.7536]
[1734295563385,2.21801987,3898.8,3898.0,0.7536]
[1734295563554,0.8680589,3898.7,3898.0,0.7536]
[1734295563777,0.04780348,3898.6,3898.0,0.7536]
[1734295563959,2.69315089,3898.9,3898.0,0.7536]
[1734295564158,2.17069665,3898.8,3898.0,0.7536]
[1734295564458,0.86827866,3898.7,3898.0,0.7536]
[1734295564853,0.04780348,3898.6,3898.0,0.7536]
[1734295565192,1.78259441,3898.9,3898.0,0.7536]
[1734295565398,2.218978,3898.8,3898.0,0.7536]
[1734295565600,0.86844215,3898.7,3898.0,0.7536]
[1734295565800,0.04780348,3898.6,3898.0,0.7536]
[1734295566183,0.04780348,3898.6,3897.7,0.7724]
[1734295566384,0.7091,3898.5,3897.7,0.7724]
[1734295566585,0.7091,3898.5,3897.4,1.00731816]
[1734295566586,0.48743162,3898.4,3897.4,0.7724]
[1734295566803,3.2744,3898.2,3897.4,0.7724]
[1734295566979,0.91623706,3898.1,3897.3,0.0506679]
[1734295567301,0.84917954,3898.1,3897.3,0.0506679]
[1734295568305,0.047794,3898.1,3897.6,0.7664]
[1734295568799,0.04762076,3898.0,3897.6,0.7664]
[1734295569010,1.78259441,3898.6,3897.6,0.7664]
[1734295569226,2.21936545,3898.5,3897.6,0.7664]
[1734295569368,0.86871538,3898.4,3897.6,0.7664]
[1734295569562,0.0477245,3898.3,3897.6,0.7664]
[1734295569874,1.07349441,3898.4,3897.6,0.7664]
[1734295570208,0.0477245,3898.3,3897.6,0.7664]
[1734295570405,0.0477245,3898.3,3897.3,0.0506679]
[1734295570406,1.37665359,3898.2,3897.3,0.8318679]
[1734295570565,0.04765534,3898.1,3897.3,0.8318679]
[1734295574369,0.86908523,3898.0,3897.3,0.8318679]
[1734295574586,0.04758617,3897.9,3897.3,0.8318679]
[1734295574784,0.43955306,3897.9,3897.3,0.0506679]
[1734295574987,1.07349441,3898.1,3897.3,0.0506679]
[1734295574988,0.04755159,3897.8,3897.3,0.0506679]
[1734295575168,4.34788441,3898.2,3897.3,0.0506679]
[1734295575369,2.22046807,3898.1,3897.3,0.0506679]
[1734295575591,2.17300306,3898.0,3897.3,0.0506679]
[1734295575790,0.04753171,3897.9,3897.3,0.0506679]
[1734295576605,1.07349441,3898.1,3897.3,0.0506679]
[1734295576606,0.04749712,3897.8,3897.3,0.0506679]
[1734295576766,1.07349441,3898.1,3897.3,0.0506679]
[1734295576967,3.84251987,3898.1,3897.3,0.0506679]
[1734295577316,2.22124975,3898.0,3897.3,0.0506679]
[1734295577468,0.86939414,3897.9,3897.3,0.0506679]
[1734295578004,0.04749712,3897.8,3897.3,0.0506679]
[1734295578402,1.07349441,3898.0,3897.3,0.0506679]
[1734295578606,1.35204574,3897.9,3897.3,0.0506679]
[1734295578808,0.04753171,3897.9,3897.3,0.0506679]
[1734295579712,0.86970494,3897.8,3897.3,0.0506679]
[1734295580070,0.04746253,3897.7,3897.3,0.0506679]
[1734295580543,1.07349441,3898.0,3897.3,0.0506679]
[1734295580669,0.04742794,3897.6,3897.3,0.0506679]
[1734295580871,1.07349441,3898.0,3897.3,0.0506679]
[1734295581185,0.04739335,3897.5,3897.3,0.0506679]
[1734295581508,1.07349441,3897.9,3897.3,0.0506679]
[1734295581716,0.04735876,3897.4,3897.3,0.0506679]
[1734295581867,1.07349441,3897.9,3897.3,0.0506679]
[1734295582070,0.04735876,3897.4,3897.3,0.0506679]
[1734295582271,1.07349441,3898.0,3897.3,0.0506679]
[1734295582574,1.30462135,3897.9,3897.3,0.0506679]
[1734295582783,0.04749712,3897.8,3897.3,0.0506679]
[1734295582998,1.07349441,3898.0,3897.3,0.0506679]
[1734295583210,1.35217152,3897.9,3897.3,0.0506679]
[1734295583409,0.04753171,3897.9,3897.3,0.0506679]
[1734295584568,0.86975842,3897.8,3897.3,0.0506679]
[1734295584811,0.04746253,3897.7,3897.3,0.0506679]
[1734295585017,1.72858853,3898.0,3897.3,0.0506679]
[1734295585217,2.65688091,3897.9,3897.3,0.0506679]
[1734295585379,0.86976931,3897.8,3897.3,0.0506679]
[1734295585576,0.04746253,3897.7,3897.3,0.0006679]
[1734295585914,1.50842033,3897.9,3897.3,0.0006679]
[1734295586227,1.24685109,3897.8,3897.3,0.0006679]
[1734295586378,0.04746253,3897.7,3897.3,0.0006679]
[1734295586579,0.37710311,3897.8,3897.3,0.0006679]
[1734295586981,0.91713781,3897.7,3897.3,0.0006679]
[1734295587205,0.04739813,3897.7,3897.3,0.0006679]
[1734295587414,0.22070957,3897.6,3897.3,0.0006679]
[1734295587619,0.04732895,3897.5,3897.3,0.0006679]
[1734295595225,0.04732895,3897.5,3897.4,0.7675]
[1734295595430,1.07349441,3897.9,3897.4,0.7675]
[1734295595667,1.35147844,3897.8,3897.4,0.7675]
[1734295595863,0.04695729,3897.8,3897.4,0.7675]
[1734295597031,0.04698214,3897.7,3897.4,0.7675]
[1734295597235,1.07349441,3898.1,3897.4,0.7675]
[1734295597425,0.04708589,3898.0,3897.4,0.7675]
[1734295599241,0.86973412,3897.9,3897.4,0.7675]
[1734295599451,0.04708589,3898.0,3897.4,0.7675]
[1734295599638,0.04707752,3897.8,3897.4,0.7675]
[1734295599962,0.0471121,3897.9,3897.4,0.7675]
[1734295600138,0.04704293,3897.7,3897.4,0.7675]
[1734295600341,0.04707752,3897.8,3897.4,0.7675]
[1734295600656,1.07349441,3898.1,3897.4,0.7675]
[1734295600863,0.0470443,3897.7,3897.4,0.7675]
[1734295601060,1.07349441,3898.1,3897.4,0.7675]
[1734295601258,0.04700971,3897.6,3897.4,0.7675]
[1734295601463,1.07349441,3898.1,3897.4,0.7675]
[1734295601662,1.30459798,3898.0,3897.4,0.7675]
[1734295601865,0.04714806,3898.0,3897.4,0.7675]
[1734295602680,2.42521149,3898.0,3897.4,0.7675]
[1734295602865,2.17426036,3897.9,3897.4,0.7675]
[1734295603418,0.04708022,3897.8,3897.4,0.7675]
[1734295603783,1.07349441,3898.0,3897.4,0.7675]
[1734295604128,1.35168629,3897.9,3897.4,0.7675]
[1734295604280,0.86969457,3897.8,3897.4,0.7675]
[1734295604475,1.12060922,3897.9,3897.4,0.7675]
[1734295604680,0.04704564,3897.7,3897.4,0.7675]
[1734295604892,0.04700371,3897.8,3897.4,0.7675]
[1734295605113,0.04693453,3897.6,3897.4,0.7675]
[1734295605326,1.07349441,3897.9,3897.4,0.7675]
[1734295605519,0.04689994,3897.5,3897.4,0.7675]
[1734295605977,1.34159552,3897.8,3897.4,0.7675]
[1734295606177,0.91666402,3897.7,3897.4,0.7675]
[1734295606413,0.04696912,3897.7,3897.4,0.7675]
[1734295606620,1.34159552,3897.8,3897.4,0.7675]
[1734295606924,1.28251149,3897.7,3897.4,0.7675]
[1734295607127,0.41278537,3897.7,3897.4,0.7675]
[1734295607333,0.41278537,3897.7,3897.3,0.0006679]
[1734295607633,0.8696839,3897.6,3897.3,0.0006679]
[1734295607840,0.04687021,3897.5,3897.3,0.0006679]
[1734295608140,0.36582122,3897.7,3897.3,0.0006679]
[1734295608433,1.43931563,3897.7,3897.3,0.0006679]
[1734295608637,0.91667036,3897.6,3897.3,0.0006679]
[1734295608938,0.04685664,3897.6,3897.3,0.0006679]
[1734295610405,0.87007683,3897.5,3897.3,0.0006679]
[1734295610606,0.04676902,3897.4,3897.3,0.0006679]
[1734295611033,1.43931563,3897.7,3897.3,0.0006679]
[1734295611237,2.22200642,3897.6,3897.3,0.0006679]
[1734295611448,0.87006728,3897.5,3897.3,0.0006679]
[1734295611810,0.04676902,3897.4,3897.3,0.0006679]
[1734295612237,1.07349441,3897.6,3897.3,0.0006679]
[1734295612423,0.04679507,3897.5,3897.3,0.0006679]
[1734295613161,1.07349441,3897.8,3897.3,0.0006679]
[1734295613306,0.04676047,3897.4,3897.3,0.0006679]
[1734295613655,0.04676183,3897.4,3897.3,0.0006679]
[1734295613833,1.07349441,3897.8,3897.3,0.0006679]
[1734295614022,0.0468755,3897.7,3897.3,0.0006679]
[1734295614202,0.87029083,3897.6,3897.3,0.0006679]
[1734295614421,1.07349441,3897.8,3897.3,0.0006679]
[1734295614422,0.04680632,3897.5,3897.3,0.0006679]
[1734295614620,1.07349441,3897.8,3897.3,0.0006679]
[1734295614839,0.9171791,3897.7,3897.3,0.0006679]
[1734295615053,0.8703036,3897.6,3897.3,0.0006679]
[1734295615255,1.12036991,3897.7,3897.3,0.0006679]
[1734295615453,0.04680632,3897.5,3897.3,0.0006679]
[1734295616145,1.07349441,3897.7,3897.3,0.0006679]
[1734295616645,0.91728858,3897.6,3897.3,0.0006679]
[1734295616847,0.87037695,3897.5,3897.3,0.0006679]
[1734295617047,0.04684244,3897.4,3897.3,0.0006679]
[1734295617372,0.9172048,3897.4,3897.3,0.0006679]
[1734295617531,1.11627472,3897.4,3897.3,0.0006679]
[1734295617875,2.42184813,3897.4,3897.3,0.0006679]
[1734295620959,2.62499159,3897.4,3897.3,0.0006679]
[1734295621161,3.49538147,3897.4,3897.3,0.0006679]
[1734295625403,3.49522217,3897.4,3897.3,0.0006679]
[1734295625898,2.42172776,3897.4,3897.3,0.0006679]
[1734295626906,2.42172776,3897.4,3897.3,4.37355606]
[1734295626907,0.04684244,3897.4,3897.3,4.37355606]
[1734295627201,0.04684244,3897.4,3897.3,9.98760018]
[1734295627413,1.07349441,3898.5,3898.0,0.8064]
[1734295627699,0.04068536,3898.4,3898.0,0.8064]
[1734295628062,0.04068536,3898.4,3898.1,1.00731816]